[Event "Titled Tuesday Blitz December 20 Late 2022"]
[White "Onslow, Alfie"]
[Black "Omelja, Artem"]
[WhiteFideId "436976"]
[BlackFideId "14119846"]
[WhiteElo "2015"]
[BlackElo "2404"]
[Result "0-1"]
[Round "04"]
[TimeControl "180+1"]
[Date "2022.12.21"]
[WhiteClock "0:00:02"]
[BlackClock "0:00:08"]

1. e4 {[%clk 0:02:57]}  c5 {[%clk 0:02:58]} 2. Nc3 {[%clk 0:02:52]}  Na6 {[%clk 0:02:56]} 3. Bxa6 {[%clk 0:02:50]}  bxa6 {[%clk 0:02:57]} 4. Nf3 {[%clk 0:02:50]}  d6 {[%clk 0:02:57]} 5. O-O {[%clk 0:02:46]}  Bb7 {[%clk 0:02:57]} 6. Re1 {[%clk 0:02:46]}  g6 {[%clk 0:02:54]} 7. d4 {[%clk 0:02:45]}  cxd4 {[%clk 0:02:52]} 8. Qxd4 {[%clk 0:02:44]}  Nf6 {[%clk 0:02:52]} 9. Bg5 {[%clk 0:02:43]}  Bg7 {[%clk 0:02:51]} 10. e5 {[%clk 0:02:33]}  dxe5 {[%clk 0:02:32]} 11. Qa4+ {[%clk 0:02:16]}  Qd7 {[%clk 0:02:19]} 12. Nxe5 {[%clk 0:02:16]}  Qxa4 {[%clk 0:02:19]} 13. Nxa4 {[%clk 0:02:17]}  O-O {[%clk 0:02:18]} 14. Nc5 {[%clk 0:02:15]}  Bc8 {[%clk 0:01:46]} 15. Nc6 {[%clk 0:01:53]}  e6 {[%clk 0:01:28]} 16. Rad1 {[%clk 0:01:52]}  Nd5 {[%clk 0:01:25]} 17. c4 {[%clk 0:01:39]}  Nb6 {[%clk 0:01:24]} 18. b3 {[%clk 0:01:37]}  e5 {[%clk 0:01:08]} 19. Ne7+ {[%clk 0:01:21]}  Kh8 {[%clk 0:01:08]} 20. Nxc8 {[%clk 0:01:20]}  Raxc8 {[%clk 0:01:06]} 21. Nxa6 {[%clk 0:01:20]}  f5 {[%clk 0:01:02]} 22. Nb4 {[%clk 0:01:10]}  h6 {[%clk 0:00:58]} 23. Be3 {[%clk 0:01:07]}  e4 {[%clk 0:00:56]} 24. Bxb6 {[%clk 0:00:42]}  axb6 {[%clk 0:00:55]} 25. Rd6 {[%clk 0:00:33]}  Bc3 {[%clk 0:00:54]} 26. Nc2 {[%clk 0:00:24]}  Bxe1 {[%clk 0:00:53]} 27. Nxe1 {[%clk 0:00:25]}  Rb8 {[%clk 0:00:22]} 28. Rxg6 {[%clk 0:00:25]}  Kh7 {[%clk 0:00:23]} 29. Rc6 {[%clk 0:00:19]}  Rfd8 {[%clk 0:00:20]} 30. Kf1 {[%clk 0:00:19]}  Rd1 {[%clk 0:00:18]} 31. Rf6 {[%clk 0:00:18]}  Ra8 {[%clk 0:00:17]} 32. a4 {[%clk 0:00:16]}  Rb1 {[%clk 0:00:13]} 33. Rxb6 {[%clk 0:00:16]}  Rd8 {[%clk 0:00:13]} 34. Ke2 {[%clk 0:00:13]}  Rb2+ {[%clk 0:00:13]} 35. Kf1 {[%clk 0:00:13]}  Rd1 {[%clk 0:00:14]} 36. Rb7+ {[%clk 0:00:07]}  Kg6 {[%clk 0:00:14]} 37. Rb6+ {[%clk 0:00:07]}  Kf7 {[%clk 0:00:13]} 38. Rb7+ {[%clk 0:00:07]}  Ke8 {[%clk 0:00:13]} 39. Rb8+ {[%clk 0:00:07]}  Kd7 {[%clk 0:00:13]} 40. Rb7+ {[%clk 0:00:07]}  Kc8 {[%clk 0:00:13]} 41. Rf7 {[%clk 0:00:03]}  Rbb1 {[%clk 0:00:13]} 42. g3 {[%clk 0:00:03]}  Rxe1+ {[%clk 0:00:14]} 43. Kg2 {[%clk 0:00:04]}  Rxb3 {[%clk 0:00:14]} 44. Rxf5 {[%clk 0:00:04]}  Rf3 {[%clk 0:00:11]} 45. Rc5+ {[%clk 0:00:03]}  Kd7 {[%clk 0:00:11]} 46. Rd5+ {[%clk 0:00:03]}  Ke6 {[%clk 0:00:11]} 47. a5 {[%clk 0:00:04]}  Re2 {[%clk 0:00:10]} 48. a6 {[%clk 0:00:04]}  Rfxf2+ {[%clk 0:00:10]} 49. Kh3 {[%clk 0:00:04]}  Rxh2+ {[%clk 0:00:09]} 50. Kg4 {[%clk 0:00:04]}  Ra2 {[%clk 0:00:09]} 51. Kf4 {[%clk 0:00:03]}  Rxa6 {[%clk 0:00:09]} 52. Kxe4 {[%clk 0:00:03]}  Raa2 {[%clk 0:00:09]} 53. Re5+ {[%clk 0:00:03]}  Kf6 {[%clk 0:00:08]} 54. Rf5+ {[%clk 0:00:04]}  Kg6 {[%clk 0:00:09]} 55. Rd5 {[%clk 0:00:04]}  Rae2+ {[%clk 0:00:08]} 56. Kf4 {[%clk 0:00:05]}  Rhf2+ {[%clk 0:00:07]} 57. Kg4 {[%clk 0:00:05]}  Rf6 {[%clk 0:00:07]} 58. Kh3 {[%clk 0:00:04]}  Re4 {[%clk 0:00:07]} 59. c5 {[%clk 0:00:04]}  Rc4 {[%clk 0:00:07]} 60. Kh2 {[%clk 0:00:01]}  Rc6 {[%clk 0:00:07]} 61. Rd7 {[%clk 0:00:01]}  R4xc5 {[%clk 0:00:07]} 62. Rd8 {[%clk 0:00:01]}  Rc2+ {[%clk 0:00:07]} 63. Kh3 {[%clk 0:00:01]}  R2c5 {[%clk 0:00:08]} 64. Rg8+ {[%clk 0:00:01]}  Kh7 {[%clk 0:00:08]} 65. Rd8 {[%clk 0:00:02]}  Rg6 {[%clk 0:00:08]} 66. Rd7+ {[%clk 0:00:03]}  Rg7 {[%clk 0:00:09]} 67. Rd3 {[%clk 0:00:03]}  Rcg5 {[%clk 0:00:09]} 68. Rf3 {[%clk 0:00:03]}  Rg4 {[%clk 0:00:09]} 69. Kh2 {[%clk 0:00:03]}  h5 {[%clk 0:00:10]} 70. Kh3 {[%clk 0:00:03]}  Kh6 {[%clk 0:00:09]} 71. Rf6+ {[%clk 0:00:03]}  R7g6 {[%clk 0:00:10]} 72. Rf3 {[%clk 0:00:04]}  R4g5 {[%clk 0:00:08]} 73. Re3 {[%clk 0:00:04]}  h4 {[%clk 0:00:07]} 74. gxh4 {[%clk 0:00:04]}  Rg1 {[%clk 0:00:07]} 75. Kh2 {[%clk 0:00:04]}  Kh5 {[%clk 0:00:07]} 76. Re5+ {[%clk 0:00:03]}  Kxh4 {[%clk 0:00:07]} 77. Re4+ {[%clk 0:00:03]}  R1g4 {[%clk 0:00:07]} 78. Re3 {[%clk 0:00:03]}  Kh5 {[%clk 0:00:08]} 79. Re5+ {[%clk 0:00:02]}  R6g5 {[%clk 0:00:08]} 80. Re8 {[%clk 0:00:02]}  Rh4# {[%clk 0:00:08]} 0-1


[Site "https://www.chess.com"]

[Event "Titled Tuesday Blitz December 20 Late 2022"]
[White "Pakleza, Zbigniew"]
[Black "Veiga, Jose Francisco R P Neves"]
[WhiteFideId "1119290"]
[BlackFideId "1930087"]
[WhiteElo "2410"]
[BlackElo "2320"]
[Result "1-0"]
[Round "04"]
[TimeControl "180+1"]
[Date "2022.12.21"]
[WhiteClock "0:00:09"]
[BlackClock "0:00:11"]

1. d4 {[%clk 0:02:56]}  Nf6 {[%clk 0:02:59]} 2. Nf3 {[%clk 0:02:56]}  g6 {[%clk 0:02:58]} 3. Bf4 {[%clk 0:02:56]}  Bg7 {[%clk 0:02:59]} 4. e3 {[%clk 0:02:56]}  O-O {[%clk 0:02:58]} 5. Be2 {[%clk 0:02:56]}  d6 {[%clk 0:02:57]} 6. h3 {[%clk 0:02:56]}  b6 {[%clk 0:02:58]} 7. O-O {[%clk 0:02:55]}  Bb7 {[%clk 0:02:58]} 8. c3 {[%clk 0:02:56]}  Nbd7 {[%clk 0:02:59]} 9. Bh2 {[%clk 0:02:55]}  a6 {[%clk 0:02:58]} 10. a4 {[%clk 0:02:54]}  Ra7 {[%clk 0:02:58]} 11. Nbd2 {[%clk 0:02:50]}  Qa8 {[%clk 0:02:37]} 12. Bd3 {[%clk 0:02:38]}  Re8 {[%clk 0:02:19]} 13. Qb3 {[%clk 0:02:21]}  e5 {[%clk 0:02:14]} 14. Bc4 {[%clk 0:02:05]}  d5 {[%clk 0:02:08]} 15. Be2 {[%clk 0:02:04]}  Ne4 {[%clk 0:01:56]} 16. Nxe4 {[%clk 0:01:27]}  dxe4 {[%clk 0:01:53]} 17. Ng5 {[%clk 0:01:21]}  Re7 {[%clk 0:01:18]} 18. Bc4 {[%clk 0:01:03]}  Qe8 {[%clk 0:01:18]} 19. d5 {[%clk 0:00:30]}  Nc5 {[%clk 0:01:04]} 20. Qc2 {[%clk 0:00:30]}  h6 {[%clk 0:01:02]} 21. Nxe4 {[%clk 0:00:29]}  Nxe4 {[%clk 0:00:54]} 22. Qxe4 {[%clk 0:00:30]}  Rd7 {[%clk 0:00:49]} 23. Rfd1 {[%clk 0:00:30]}  Rd6 {[%clk 0:00:48]} 24. Qc2 {[%clk 0:00:27]}  Ra8 {[%clk 0:00:48]} 25. e4 {[%clk 0:00:27]}  Rad8 {[%clk 0:00:48]} 26. Be2 {[%clk 0:00:24]}  c6 {[%clk 0:00:39]} 27. c4 {[%clk 0:00:23]}  cxd5 {[%clk 0:00:38]} 28. cxd5 {[%clk 0:00:21]}  Qd7 {[%clk 0:00:30]} 29. Rdc1 {[%clk 0:00:18]}  Rc8 {[%clk 0:00:29]} 30. Qb3 {[%clk 0:00:15]}  f5 {[%clk 0:00:28]} 31. f3 {[%clk 0:00:13]}  f4 {[%clk 0:00:23]} 32. Kh1 {[%clk 0:00:13]}  Qd8 {[%clk 0:00:06]} 33. Bg1 {[%clk 0:00:11]}  Bf6 {[%clk 0:00:06]} 34. Rxc8 {[%clk 0:00:11]}  Bxc8 {[%clk 0:00:07]} 35. Rc1 {[%clk 0:00:10]}  Bb7 {[%clk 0:00:08]} 36. Qc3 {[%clk 0:00:10]}  Rd7 {[%clk 0:00:06]} 37. Qb4 {[%clk 0:00:08]}  Rd6 {[%clk 0:00:06]} 38. Qc4 {[%clk 0:00:08]}  Rd7 {[%clk 0:00:05]} 39. Qb3 {[%clk 0:00:03]}  Rd6 {[%clk 0:00:05]} 40. Rc3 {[%clk 0:00:03]}  Be7 {[%clk 0:00:05]} 41. Qc2 {[%clk 0:00:03]}  Rd7 {[%clk 0:00:05]} 42. Bc4 {[%clk 0:00:03]}  Kg7 {[%clk 0:00:04]} 43. Ba2 {[%clk 0:00:03]}  Bb4 {[%clk 0:00:04]} 44. Rc4 {[%clk 0:00:03]}  Be7 {[%clk 0:00:03]} 45. Qc3 {[%clk 0:00:04]}  Bf6 {[%clk 0:00:03]} 46. b4 {[%clk 0:00:03]}  b5 {[%clk 0:00:03]} 47. axb5 {[%clk 0:00:03]}  axb5 {[%clk 0:00:04]} 48. Rc5 {[%clk 0:00:03]}  Qb6 {[%clk 0:00:02]} 49. Bb1 {[%clk 0:00:02]}  Qd6 {[%clk 0:00:02]} 50. Bd3 {[%clk 0:00:02]}  Be7 {[%clk 0:00:03]} 51. Bxb5 {[%clk 0:00:03]}  Rd8 {[%clk 0:00:03]} 52. Rc7 {[%clk 0:00:03]}  Bc8 {[%clk 0:00:02]} 53. Qc5 {[%clk 0:00:03]}  Qxc5 {[%clk 0:00:02]} 54. bxc5 {[%clk 0:00:04]}  Kf6 {[%clk 0:00:03]} 55. d6 {[%clk 0:00:04]}  Bf8 {[%clk 0:00:03]} 56. Rxc8 {[%clk 0:00:04]}  Rxc8 {[%clk 0:00:03]} 57. Bd7 {[%clk 0:00:03]}  Ra8 {[%clk 0:00:02]} 58. Bc6 {[%clk 0:00:03]}  Rc8 {[%clk 0:00:01]} 59. Bd5 {[%clk 0:00:03]}  Bxd6 {[%clk 0:00:01]} 60. cxd6 {[%clk 0:00:03]}  Rd8 {[%clk 0:00:01]} 61. Bc5 {[%clk 0:00:03]}  Rc8 {[%clk 0:00:02]} 62. d7 {[%clk 0:00:03]}  Rd8 {[%clk 0:00:03]} 63. Bc6 {[%clk 0:00:03]}  Ke6 {[%clk 0:00:03]} 64. Bb5 {[%clk 0:00:04]}  Rxd7 {[%clk 0:00:04]} 65. Bxd7+ {[%clk 0:00:04]}  Kxd7 {[%clk 0:00:05]} 66. Bb4 {[%clk 0:00:05]}  Ke6 {[%clk 0:00:06]} 67. Bc3 {[%clk 0:00:05]}  g5 {[%clk 0:00:07]} 68. Kg1 {[%clk 0:00:06]}  Kd6 {[%clk 0:00:08]} 69. Kf2 {[%clk 0:00:06]}  Ke6 {[%clk 0:00:08]} 70. Ke2 {[%clk 0:00:07]}  h5 {[%clk 0:00:09]} 71. Kd3 {[%clk 0:00:07]}  g4 {[%clk 0:00:10]} 72. Kc4 {[%clk 0:00:08]}  Kf6 {[%clk 0:00:10]} 73. Be1 {[%clk 0:00:07]}  Kg5 {[%clk 0:00:11]} 74. h4+ {[%clk 0:00:08]}  Kf6 {[%clk 0:00:11]} 75. Kd5 {[%clk 0:00:09]}  gxf3 {[%clk 0:00:11]} 76. gxf3 {[%clk 0:00:09]} 1-0


[Site "https://www.chess.com"]

[Event "Titled Tuesday Blitz December 20 Late 2022"]
[White "Paravyan, David"]
[Black "Kazakouski, Valery"]
[WhiteFideId "4194985"]
[BlackFideId "13507443"]
[WhiteElo "2551"]
[BlackElo "2516"]
[Result "1-0"]
[Round "04"]
[TimeControl "180+1"]
[Date "2022.12.20"]
[WhiteClock "0:00:22"]
[BlackClock "0:00:26"]

1. e4 {[%clk 0:03:00]}  e5 {[%clk 0:02:13]} 2. Nf3 {[%clk 0:02:59]}  Nc6 {[%clk 0:02:13]} 3. Nc3 {[%clk 0:03:00]}  Nf6 {[%clk 0:02:13]} 4. d4 {[%clk 0:03:01]}  exd4 {[%clk 0:02:14]} 5. Nxd4 {[%clk 0:03:01]}  Bc5 {[%clk 0:02:14]} 6. Be3 {[%clk 0:03:01]}  Bb6 {[%clk 0:02:14]} 7. Qd2 {[%clk 0:03:01]}  Ng4 {[%clk 0:02:13]} 8. Bg5 {[%clk 0:02:32]}  f6 {[%clk 0:02:08]} 9. Nxc6 {[%clk 0:02:25]}  Bxf2+ {[%clk 0:02:08]} 10. Qxf2 {[%clk 0:02:10]}  dxc6 {[%clk 0:02:08]} 11. Qg3 {[%clk 0:01:55]}  fxg5 {[%clk 0:02:08]} 12. h3 {[%clk 0:01:56]}  Nh6 {[%clk 0:02:07]} 13. Bc4 {[%clk 0:01:50]}  Rf8 {[%clk 0:01:59]} 14. Bb3 {[%clk 0:01:42]}  Nf7 {[%clk 0:01:54]} 15. O-O {[%clk 0:01:40]}  h6 {[%clk 0:01:47]} 16. Rf2 {[%clk 0:01:30]}  Qd4 {[%clk 0:01:18]} 17. Rd1 {[%clk 0:01:28]}  Qc5 {[%clk 0:01:18]} 18. Qxc7 {[%clk 0:00:59]}  Nd6 {[%clk 0:01:17]} 19. Rd2 {[%clk 0:00:56]}  Rxf2 {[%clk 0:01:11]} 20. Rxf2 {[%clk 0:00:57]}  Bd7 {[%clk 0:01:11]} 21. e5 {[%clk 0:00:50]}  Nc4 {[%clk 0:00:54]} 22. Bxc4 {[%clk 0:00:46]}  Qxc4 {[%clk 0:00:54]} 23. Qxb7 {[%clk 0:00:35]}  Rd8 {[%clk 0:00:42]} 24. Qxa7 {[%clk 0:00:35]}  g4 {[%clk 0:00:40]} 25. hxg4 {[%clk 0:00:32]}  Qxg4 {[%clk 0:00:41]} 26. Qc5 {[%clk 0:00:29]}  Bf5 {[%clk 0:00:37]} 27. e6 {[%clk 0:00:25]}  Bxe6 {[%clk 0:00:26]} 28. Rf8+ {[%clk 0:00:24]}  Kd7 {[%clk 0:00:26]} 29. Qa7+ {[%clk 0:00:22]} 1-0


[Site "https://www.chess.com"]

[Event "Titled Tuesday Blitz December 20 Late 2022"]
[White "Piliczewski, Bogusz"]
[Black "Kirillov, Dmitry"]
[WhiteFideId "1104144"]
[BlackFideId "34180572"]
[WhiteElo "1896"]
[BlackElo "2111"]
[Result "0-1"]
[Round "04"]
[TimeControl "180+1"]
[Date "2022.12.21"]
[WhiteClock "0:00:22"]
[BlackClock "0:00:08"]

1. d4 {[%clk 0:03:00]}  d5 {[%clk 0:02:57]} 2. Nf3 {[%clk 0:03:00]}  e6 {[%clk 0:02:57]} 3. c4 {[%clk 0:03:01]}  c6 {[%clk 0:02:57]} 4. Nc3 {[%clk 0:02:59]}  dxc4 {[%clk 0:02:57]} 5. a4 {[%clk 0:02:57]}  Bb4 {[%clk 0:02:56]} 6. e4 {[%clk 0:02:54]}  b5 {[%clk 0:02:56]} 7. Be2 {[%clk 0:02:46]}  Nf6 {[%clk 0:02:55]} 8. Bg5 {[%clk 0:02:43]}  h6 {[%clk 0:02:51]} 9. Bxf6 {[%clk 0:02:41]}  Qxf6 {[%clk 0:02:52]} 10. O-O {[%clk 0:02:40]}  Bxc3 {[%clk 0:02:50]} 11. bxc3 {[%clk 0:02:39]}  O-O {[%clk 0:02:49]} 12. Qb1 {[%clk 0:02:35]}  a6 {[%clk 0:02:45]} 13. Ne5 {[%clk 0:02:30]}  Qe7 {[%clk 0:02:41]} 14. f4 {[%clk 0:02:20]}  Qd6 {[%clk 0:02:02]} 15. g3 {[%clk 0:02:07]}  Nd7 {[%clk 0:02:01]} 16. Nxd7 {[%clk 0:02:04]}  Qxd7 {[%clk 0:02:00]} 17. e5 {[%clk 0:02:02]}  Bb7 {[%clk 0:02:00]} 18. Bf3 {[%clk 0:02:02]}  Rac8 {[%clk 0:01:54]} 19. Rd1 {[%clk 0:01:55]}  Qc7 {[%clk 0:01:50]} 20. Qe4 {[%clk 0:01:50]}  Rfd8 {[%clk 0:01:48]} 21. Rd2 {[%clk 0:01:49]}  a5 {[%clk 0:01:46]} 22. axb5 {[%clk 0:01:47]}  Rd5 {[%clk 0:01:44]} 23. bxc6 {[%clk 0:01:43]}  Bxc6 {[%clk 0:01:42]} 24. Qe2 {[%clk 0:01:43]}  Bb7 {[%clk 0:00:50]} 25. Bxd5 {[%clk 0:01:41]}  Bxd5 {[%clk 0:00:51]} 26. Rda2 {[%clk 0:01:40]}  Ra8 {[%clk 0:00:49]} 27. Qb2 {[%clk 0:01:34]}  Bc6 {[%clk 0:00:46]} 28. Rb1 {[%clk 0:01:29]}  Qd7 {[%clk 0:00:42]} 29. h4 {[%clk 0:01:13]}  a4 {[%clk 0:00:30]} 30. Ra3 {[%clk 0:01:07]}  Ra7 {[%clk 0:00:29]} 31. Rba1 {[%clk 0:01:06]}  Rb7 {[%clk 0:00:26]} 32. Qf2 {[%clk 0:01:03]}  Rb3 {[%clk 0:00:25]} 33. Qc2 {[%clk 0:00:58]}  Qd5 {[%clk 0:00:20]} 34. Kh2 {[%clk 0:00:57]}  Qb5 {[%clk 0:00:15]} 35. Rxb3 {[%clk 0:00:56]}  cxb3 {[%clk 0:00:13]} 36. Qd2 {[%clk 0:00:55]}  b2 {[%clk 0:00:10]} 37. Rb1 {[%clk 0:00:53]}  a3 {[%clk 0:00:10]} 38. c4 {[%clk 0:00:52]}  Qxc4 {[%clk 0:00:09]} 39. Rxb2 {[%clk 0:00:44]}  axb2 {[%clk 0:00:08]} 40. Qxb2 {[%clk 0:00:44]}  Qf1 {[%clk 0:00:07]} 41. g4 {[%clk 0:00:39]}  Qxf4+ {[%clk 0:00:06]} 42. Kg1 {[%clk 0:00:38]}  Qxg4+ {[%clk 0:00:05]} 43. Kf1 {[%clk 0:00:38]}  Qxh4 {[%clk 0:00:05]} 44. Qb8+ {[%clk 0:00:36]}  Kh7 {[%clk 0:00:05]} 45. Qc7 {[%clk 0:00:35]}  Qf4+ {[%clk 0:00:03]} 46. Ke1 {[%clk 0:00:34]}  Qe4+ {[%clk 0:00:04]} 47. Kf1 {[%clk 0:00:34]}  Kg6 {[%clk 0:00:05]} 48. Qd8 {[%clk 0:00:31]}  Bb5+ {[%clk 0:00:04]} 49. Kf2 {[%clk 0:00:30]}  Qe2+ {[%clk 0:00:05]} 50. Kg3 {[%clk 0:00:30]}  h5 {[%clk 0:00:04]} 51. Qh4 {[%clk 0:00:28]}  Qe3+ {[%clk 0:00:04]} 52. Kh2 {[%clk 0:00:27]}  Qg5 {[%clk 0:00:04]} 53. Qxg5+ {[%clk 0:00:26]}  Kxg5 {[%clk 0:00:05]} 54. Kg3 {[%clk 0:00:27]}  Kf5 {[%clk 0:00:05]} 55. Kf3 {[%clk 0:00:26]}  Bc6+ {[%clk 0:00:05]} 56. Ke3 {[%clk 0:00:26]}  Bd5 {[%clk 0:00:06]} 57. Kf2 {[%clk 0:00:26]}  h4 {[%clk 0:00:07]} 58. Ke3 {[%clk 0:00:25]}  h3 {[%clk 0:00:07]} 59. Kf2 {[%clk 0:00:26]}  h2 {[%clk 0:00:08]} 60. Kg3 {[%clk 0:00:25]}  h1=Q {[%clk 0:00:08]} 61. Kf2 {[%clk 0:00:25]}  Qf3+ {[%clk 0:00:08]} 62. Ke1 {[%clk 0:00:25]}  Ke4 {[%clk 0:00:08]} 63. Kd2 {[%clk 0:00:25]}  Bb3 {[%clk 0:00:07]} 64. Kc1 {[%clk 0:00:25]}  Qe2 {[%clk 0:00:07]} 65. Kb1 {[%clk 0:00:23]}  Qc2+ {[%clk 0:00:07]} 66. Ka1 {[%clk 0:00:22]}  Qa2# {[%clk 0:00:08]} 0-1


[Site "https://www.chess.com"]

[Event "Titled Tuesday Blitz December 20 Late 2022"]
[White "Poltorak, Sebastian"]
[Black "Goltsev, Dmitry"]
[WhiteFideId "1199498"]
[BlackFideId "24176710"]
[WhiteElo "2195"]
[BlackElo "2327"]
[Result "0-1"]
[Round "04"]
[TimeControl "180+1"]
[Date "2022.12.21"]
[WhiteClock "0:00:16"]
[BlackClock "0:01:55"]

1. d4 {[%clk 0:03:00]}  Nf6 {[%clk 0:02:59]} 2. c4 {[%clk 0:03:01]}  e6 {[%clk 0:03:00]} 3. Nc3 {[%clk 0:03:01]}  d5 {[%clk 0:02:59]} 4. cxd5 {[%clk 0:03:01]}  exd5 {[%clk 0:02:59]} 5. Bg5 {[%clk 0:03:02]}  c6 {[%clk 0:02:59]} 6. e3 {[%clk 0:03:00]}  Be7 {[%clk 0:02:59]} 7. Bd3 {[%clk 0:03:01]}  h6 {[%clk 0:02:58]} 8. Bh4 {[%clk 0:03:01]}  Nbd7 {[%clk 0:02:58]} 9. Nge2 {[%clk 0:03:01]}  Nf8 {[%clk 0:02:58]} 10. Qc2 {[%clk 0:02:58]}  Ne6 {[%clk 0:02:56]} 11. f3 {[%clk 0:02:54]}  Bd7 {[%clk 0:02:55]} 12. h3 {[%clk 0:02:40]}  Qc7 {[%clk 0:02:52]} 13. Rc1 {[%clk 0:02:34]}  Bd6 {[%clk 0:02:51]} 14. e4 {[%clk 0:02:24]}  Bf4 {[%clk 0:02:42]} 15. Rd1 {[%clk 0:02:11]}  Be3 {[%clk 0:02:40]} 16. Bxf6 {[%clk 0:01:50]}  gxf6 {[%clk 0:02:39]} 17. exd5 {[%clk 0:01:50]}  cxd5 {[%clk 0:02:39]} 18. Nxd5 {[%clk 0:01:47]}  Qa5+ {[%clk 0:02:37]} 19. Qc3 {[%clk 0:01:44]}  Qxd5 {[%clk 0:02:36]} 20. Be4 {[%clk 0:01:03]}  Qg5 {[%clk 0:02:34]} 21. f4 {[%clk 0:00:57]}  Nxf4 {[%clk 0:02:33]} 22. Rf1 {[%clk 0:00:45]}  Nxe2 {[%clk 0:02:17]} 23. Kxe2 {[%clk 0:00:43]}  Bb5+ {[%clk 0:02:14]} 24. Bd3 {[%clk 0:00:43]}  Bxd3+ {[%clk 0:02:08]} 25. Rxd3 {[%clk 0:00:42]}  Qxg2+ {[%clk 0:02:07]} 26. Kxe3 {[%clk 0:00:40]}  Qxf1 {[%clk 0:02:05]} 27. Kd2 {[%clk 0:00:33]}  O-O {[%clk 0:02:03]} 28. Rg3+ {[%clk 0:00:33]}  Kh8 {[%clk 0:02:03]} 29. Qe3 {[%clk 0:00:33]}  Kh7 {[%clk 0:01:59]} 30. Qe4+ {[%clk 0:00:30]}  f5 {[%clk 0:01:59]} 31. Qd5 {[%clk 0:00:19]}  Rae8 {[%clk 0:01:56]} 32. Rg2 {[%clk 0:00:18]}  Qf4+ {[%clk 0:01:55]} 33. Kc2 {[%clk 0:00:16]}  Qe4+ {[%clk 0:01:55]} 0-1


[Site "https://www.chess.com"]

[Event "Titled Tuesday Blitz December 20 Late 2022"]
[White "Rangel, Daniel"]
[Black "Marchesich, Giovanni"]
[WhiteFideId "2124475"]
[BlackFideId "2824790"]
[WhiteElo "2225"]
[BlackElo "2200"]
[Result "1-0"]
[Round "04"]
[TimeControl "180+1"]
[Date "2022.12.21"]
[WhiteClock "0:01:26"]
[BlackClock "0:01:22"]

1. d4 {[%clk 0:03:00]}  g6 {[%clk 0:02:58]} 2. c4 {[%clk 0:03:01]}  Bg7 {[%clk 0:02:57]} 3. Nc3 {[%clk 0:03:02]}  Nh6 {[%clk 0:02:56]} 4. e4 {[%clk 0:03:02]}  f6 {[%clk 0:02:57]} 5. Be3 {[%clk 0:02:55]}  Nf7 {[%clk 0:02:57]} 6. Qd2 {[%clk 0:02:53]}  O-O {[%clk 0:02:57]} 7. h4 {[%clk 0:02:52]}  h6 {[%clk 0:02:53]} 8. Nge2 {[%clk 0:02:46]}  d6 {[%clk 0:02:53]} 9. Nf4 {[%clk 0:02:45]}  Kh7 {[%clk 0:02:44]} 10. h5 {[%clk 0:02:35]}  g5 {[%clk 0:02:44]} 11. Ng6 {[%clk 0:02:35]}  Re8 {[%clk 0:02:45]} 12. f4 {[%clk 0:02:35]}  e5 {[%clk 0:02:42]} 13. fxg5 {[%clk 0:02:35]}  Nxg5 {[%clk 0:02:36]} 14. O-O-O {[%clk 0:02:35]}  Nc6 {[%clk 0:02:34]} 15. d5 {[%clk 0:02:30]}  Ne7 {[%clk 0:02:31]} 16. Nh4 {[%clk 0:02:19]}  Bg4 {[%clk 0:02:27]} 17. Re1 {[%clk 0:02:16]}  Rf8 {[%clk 0:02:20]} 18. Bd3 {[%clk 0:02:15]}  Qd7 {[%clk 0:02:16]} 19. Ne2 {[%clk 0:02:10]}  f5 {[%clk 0:02:16]} 20. exf5 {[%clk 0:02:08]}  Nxf5 {[%clk 0:02:13]} 21. Ng3 {[%clk 0:02:02]}  e4 {[%clk 0:02:10]} 22. Nxe4 {[%clk 0:02:00]}  Nxe4 {[%clk 0:02:05]} 23. Bxe4 {[%clk 0:01:59]}  Kg8 {[%clk 0:02:04]} 24. Nxf5 {[%clk 0:01:50]}  Bxf5 {[%clk 0:02:03]} 25. Bxh6 {[%clk 0:01:49]}  Bxe4 {[%clk 0:02:01]} 26. Rxe4 {[%clk 0:01:50]}  Qf5 {[%clk 0:02:01]} 27. Re7 {[%clk 0:01:40]}  Bf6 {[%clk 0:01:35]} 28. Bxf8 {[%clk 0:01:31]}  Bg5 {[%clk 0:01:28]} 29. Rg7+ {[%clk 0:01:27]}  Kh8 {[%clk 0:01:25]} 30. Rxg5 {[%clk 0:01:26]}  Qe4 {[%clk 0:01:22]} 1-0


[Site "https://www.chess.com"]

[Event "Titled Tuesday Blitz December 20 Late 2022"]
[White "Sanchez, Robert"]
[Black "Movahed, Sina"]
[WhiteFideId "2034360"]
[BlackFideId "42520835"]
[WhiteElo "2379"]
[BlackElo "2225"]
[Result "0-1"]
[Round "04"]
[TimeControl "180+1"]
[Date "2022.12.21"]
[WhiteClock "0:00:32"]
[BlackClock "0:01:59"]

1. e4 {[%clk 0:03:00]}  c5 {[%clk 0:02:59]} 2. Nf3 {[%clk 0:03:00]}  d6 {[%clk 0:02:59]} 3. d4 {[%clk 0:03:01]}  cxd4 {[%clk 0:03:00]} 4. Nxd4 {[%clk 0:03:01]}  Nf6 {[%clk 0:03:01]} 5. Nc3 {[%clk 0:03:02]}  g6 {[%clk 0:03:01]} 6. Be3 {[%clk 0:03:02]}  Bg7 {[%clk 0:03:01]} 7. f3 {[%clk 0:03:02]}  O-O {[%clk 0:03:02]} 8. Qd2 {[%clk 0:03:03]}  Nc6 {[%clk 0:03:02]} 9. Bc4 {[%clk 0:03:03]}  Bd7 {[%clk 0:02:59]} 10. O-O-O {[%clk 0:03:03]}  Nxd4 {[%clk 0:02:51]} 11. Bxd4 {[%clk 0:03:03]}  b5 {[%clk 0:02:51]} 12. Bb3 {[%clk 0:03:03]}  a5 {[%clk 0:02:51]} 13. h4 {[%clk 0:02:48]}  a4 {[%clk 0:02:48]} 14. Bxf6 {[%clk 0:02:45]}  Bxf6 {[%clk 0:02:37]} 15. Bd5 {[%clk 0:02:25]}  Rb8 {[%clk 0:02:36]} 16. a3 {[%clk 0:02:03]}  b4 {[%clk 0:02:35]} 17. axb4 {[%clk 0:02:03]}  Rxb4 {[%clk 0:02:34]} 18. h5 {[%clk 0:01:53]}  e6 {[%clk 0:02:22]} 19. Ba2 {[%clk 0:01:51]}  Qa5 {[%clk 0:02:11]} 20. hxg6 {[%clk 0:01:08]}  hxg6 {[%clk 0:02:07]} 21. Kb1 {[%clk 0:00:33]}  Rxb2+ {[%clk 0:02:00]} 22. Kxb2 {[%clk 0:00:34]}  Bxc3+ {[%clk 0:01:58]} 23. Qxc3 {[%clk 0:00:31]}  Rb8+ {[%clk 0:01:58]} 24. Bb3 {[%clk 0:00:32]}  a3+ {[%clk 0:01:59]} 0-1


[Site "https://www.chess.com"]